[Event "*** SCC Grand Prix: Titled Tuesday Blitz"]
[Site "Chess.com"]
[Date "2020.07.21"]
[Round "4"]
[White "lider34"]
[Black "QueenOfTactics90"]
[Result "1-0"]
[WhiteElo "2209"]
[BlackElo "1995"]
[TimeControl "180+1"]
[EndTime "10:36:38 PDT"]
[Termination "lider34 won by resignation"]

1. e4 {[%clk 0:03:00.9]} 1... c5 {[%clk 0:02:58.2]} 2. c3 {[%clk 0:02:58.1]}
2... Nf6 {[%clk 0:02:57.3]} 3. e5 {[%clk 0:02:57.9]} 3... Nd5 {[%clk 0:02:58]}
4. d4 {[%clk 0:02:58.1]} 4... cxd4 {[%clk 0:02:58.9]} 5. Nf3 {[%clk 0:02:58]}
5... Nc6 {[%clk 0:02:58.1]} 6. Bc4 {[%clk 0:02:57.5]} 6... Nb6 {[%clk
0:02:57.5]} 7. Bb3 {[%clk 0:02:57.1]} 7... d5 {[%clk 0:02:57]} 8. exd6 {[%clk
0:02:56.9]} 8... e6 {[%clk 0:02:57.2]} 9. cxd4 {[%clk 0:02:54]} 9... Bxd6 {[%clk
0:02:56.6]} 10. O-O {[%clk 0:02:54.9]} 10... O-O {[%clk 0:02:56.1]} 11. Nc3
{[%clk 0:02:55.8]} 11... e5 {[%clk 0:02:50.3]} 12. dxe5 {[%clk 0:02:43.3]} 12...
Nxe5 {[%clk 0:02:49.3]} 13. Nxe5 {[%clk 0:02:39.7]} 13... Bxe5 {[%clk
0:02:49.5]} 14. Be3 {[%clk 0:02:38.2]} 14... Bf5 {[%clk 0:02:33.3]} 15. Qxd8
{[%clk 0:02:29.2]} 15... Rfxd8 {[%clk 0:02:32.6]} 16. Rad1 {[%clk 0:02:29.6]}
16... Bd3 {[%clk 0:02:12.2]} 17. Rfe1 {[%clk 0:02:27.3]} 17... Nc4 {[%clk
0:02:12.2]} 18. Rxd3 {[%clk 0:02:21]} 18... Rxd3 {[%clk 0:02:03.1]} 19. Bxc4
{[%clk 0:02:20.2]} 19... Rd7 {[%clk 0:01:55.6]} 20. Bxa7 {[%clk 0:02:01.8]}
20... Bxc3 {[%clk 0:01:53.8]} 21. bxc3 {[%clk 0:01:59.6]} 21... g6 {[%clk
0:01:43.6]} 22. Bd4 {[%clk 0:01:57.6]} 22... h5 {[%clk 0:01:41.1]} 23. h4 {[%clk
0:01:56.1]} 23... Kh7 {[%clk 0:01:31.4]} 24. g3 {[%clk 0:01:53.9]} 24... f5
{[%clk 0:01:29.3]} 25. Kg2 {[%clk 0:01:52.8]} 25... Rc8 {[%clk 0:01:25.5]} 26.
Bb3 {[%clk 0:01:43.6]} 26... Rf8 {[%clk 0:01:13.3]} 27. Re6 {[%clk 0:01:41.6]}
27... f4 {[%clk 0:01:08.2]} 28. gxf4 {[%clk 0:01:32.8]} 28... Rxf4 {[%clk
0:01:07.4]} 29. Re8 {[%clk 0:01:32.2]} 29... Rg4+ {[%clk 0:00:51]} 30. Kf3
{[%clk 0:01:26]} 30... g5 {[%clk 0:00:44.1]} 31. Bc2+ {[%clk 0:01:19.8]} 1-0

[Event "*** SCC Grand Prix: Titled Tuesday Blitz"]
[Site "Chess.com"]
[Date "2020.07.21"]
[Round "4"]
[White "tylityli"]
[Black "DanielTitichoca"]
[Result "1-0"]
[WhiteElo "2138"]
[BlackElo "2318"]
[TimeControl "180+1"]
[EndTime "10:36:43 PDT"]
[Termination "tylityli won by resignation"]

1. d4 {[%clk 0:03:00.9]} 1... Nf6 {[%clk 0:02:58.3]} 2. c4 {[%clk 0:03:00.5]}
2... g6 {[%clk 0:02:57.3]} 3. Nc3 {[%clk 0:03:00.6]} 3... Bg7 {[%clk 0:02:58.2]}
4. e4 {[%clk 0:03:00.3]} 4... O-O {[%clk 0:02:59.1]} 5. Nge2 {[%clk 0:03:00.4]}
5... d6 {[%clk 0:03:00]} 6. Ng3 {[%clk 0:03:00.6]} 6... c5 {[%clk 0:03:00.9]} 7.
d5 {[%clk 0:03:00.6]} 7... e6 {[%clk 0:03:00.5]} 8. Be2 {[%clk 0:03:00.7]} 8...
a6 {[%clk 0:03:00.2]} 9. a4 {[%clk 0:03:00.1]} 9... e5 {[%clk 0:03:00.2]} 10.
O-O {[%clk 0:02:59.9]} 10... a5 {[%clk 0:02:57]} 11. Bg5 {[%clk 0:02:59.2]}
11... h6 {[%clk 0:02:56.5]} 12. Be3 {[%clk 0:02:59.1]} 12... Na6 {[%clk
0:02:55.9]} 13. Qd2 {[%clk 0:02:58.8]} 13... h5 {[%clk 0:02:53.2]} 14. Bg5
{[%clk 0:02:56.8]} 14... Qe8 {[%clk 0:02:53.2]} 15. Bh6 {[%clk 0:02:49]} 15...
Nh7 {[%clk 0:02:47.8]} 16. Bxg7 {[%clk 0:02:48.4]} 16... Kxg7 {[%clk 0:02:48.7]}
17. Nb5 {[%clk 0:02:35]} 17... Qe7 {[%clk 0:02:45.7]} 18. Bd3 {[%clk 0:02:31.9]}
18... h4 {[%clk 0:02:36.5]} 19. Ne2 {[%clk 0:02:30.7]} 19... f5 {[%clk
0:02:35.7]} 20. exf5 {[%clk 0:02:22.3]} 20... gxf5 {[%clk 0:02:36.6]} 21. f4
{[%clk 0:02:20.5]} 21... e4 {[%clk 0:02:28]} 22. Qc3+ {[%clk 0:02:19]} 22... Nf6
{[%clk 0:02:24.9]} 23. Bc2 {[%clk 0:02:14.3]} 23... Nb4 {[%clk 0:02:22.7]} 24.
Rad1 {[%clk 0:02:12.8]} 24... Bd7 {[%clk 0:02:19.8]} 25. Bb1 {[%clk 0:01:58]}
25... Kh7 {[%clk 0:02:11.1]} 26. Qh3 {[%clk 0:01:54]} 26... Ng4 {[%clk
0:02:03.8]} 27. Nec3 {[%clk 0:01:27.9]} 27... Bxb5 {[%clk 0:01:49.7]} 28. axb5
{[%clk 0:01:14.3]} 28... Rg8 {[%clk 0:01:50.6]} 29. Rfe1 {[%clk 0:01:10]} 29...
Qf6 {[%clk 0:01:43.1]} 30. Nxe4 {[%clk 0:00:59.1]} 30... fxe4 {[%clk 0:01:39]}
31. Rxe4 {[%clk 0:00:58.8]} 31... Qxb2 {[%clk 0:01:22]} 32. Qxh4+ {[%clk
0:00:56.1]} 32... Nh6 {[%clk 0:01:17]} 33. Re7+ {[%clk 0:00:52.8]} 1-0

[Event "*** SCC Grand Prix: Titled Tuesday Blitz"]
[Site "Chess.com"]
[Date "2020.07.21"]
[Round "4"]
[White "mfwagnerpeixoto"]
[Black "Haykoooo0o"]
[Result "0-1"]
[WhiteElo "2277"]
[BlackElo "2522"]
[TimeControl "180+1"]
[EndTime "10:36:46 PDT"]
[Termination "Haykoooo0o won by resignation"]

1. d4 {[%clk 0:03:00.9]} 1... Nf6 {[%clk 0:02:59.4]} 2. c4 {[%clk 0:03:00.2]}
2... c5 {[%clk 0:02:54.6]} 3. d5 {[%clk 0:02:52.5]} 3... b5 {[%clk 0:02:16.6]}
4. cxb5 {[%clk 0:02:37.5]} 4... a6 {[%clk 0:02:16.6]} 5. bxa6 {[%clk 0:02:27.3]}
5... g6 {[%clk 0:02:15.9]} 6. Nc3 {[%clk 0:02:24.7]} 6... Bg7 {[%clk 0:02:15.6]}
7. g3 {[%clk 0:02:22.7]} 7... O-O {[%clk 0:02:15.6]} 8. Bg2 {[%clk 0:02:22.8]}
8... d6 {[%clk 0:02:16.2]} 9. Nf3 {[%clk 0:02:17.6]} 9... Bf5 {[%clk 0:02:14.6]}
10. O-O {[%clk 0:02:13.1]} 10... Ne4 {[%clk 0:02:14.3]} 11. Nxe4 {[%clk
0:02:10.6]} 11... Bxe4 {[%clk 0:02:15.2]} 12. h4 {[%clk 0:01:44.9]} 12... Nxa6
{[%clk 0:02:14.4]} 13. h5 {[%clk 0:01:43.9]} 13... Nb4 {[%clk 0:02:12.7]} 14. h6
{[%clk 0:01:30.4]} 14... Bf6 {[%clk 0:02:06]} 15. Bd2 {[%clk 0:01:15.5]} 15...
Nxd5 {[%clk 0:01:52]} 16. Nh2 {[%clk 0:01:02.1]} 16... Bxg2 {[%clk 0:01:48.8]}
17. Kxg2 {[%clk 0:01:03]} 17... Bxb2 {[%clk 0:01:49.3]} 18. Rb1 {[%clk
0:00:49.3]} 18... Bf6 {[%clk 0:01:48.5]} 19. Ng4 {[%clk 0:00:43.7]} 19... Qd7
{[%clk 0:01:45.6]} 20. f3 {[%clk 0:00:39]} 20... Rxa2 {[%clk 0:01:42.6]} 21. Kg1
{[%clk 0:00:20]} 21... Bd4+ {[%clk 0:01:38.6]} 22. Kh1 {[%clk 0:00:18]} 22...
Qf5 {[%clk 0:01:37]} 23. e4 {[%clk 0:00:11.9]} 23... Qh5+ {[%clk 0:01:37.1]} 24.
Nh2 {[%clk 0:00:12.5]} 24... Ne3 {[%clk 0:01:35.7]} 25. Qe2 {[%clk 0:00:11.1]}
25... Nxf1 {[%clk 0:01:34.2]} 26. Rxf1 {[%clk 0:00:12]} 26... Bc3 {[%clk
0:01:32.9]} 0-1

[Event "*** SCC Grand Prix: Titled Tuesday Blitz"]
[Site "Chess.com"]
[Date "2020.07.21"]
[Round "4"]
[White "tan275"]
[Black "JiiHart"]
[Result "1-0"]
[WhiteElo "2242"]
[BlackElo "2075"]
[TimeControl "180+1"]
[EndTime "10:36:49 PDT"]
[Termination "tan275 won by resignation"]

1. d4 {[%clk 0:03:00.9]} 1... Nf6 {[%clk 0:02:58.7]} 2. c4 {[%clk 0:03:01.5]}
2... e6 {[%clk 0:02:58.9]} 3. Nc3 {[%clk 0:03:02.1]} 3... c5 {[%clk 0:02:58.6]}
4. d5 {[%clk 0:03:01.8]} 4... exd5 {[%clk 0:02:59]} 5. cxd5 {[%clk 0:03:02.7]}
5... d6 {[%clk 0:02:59.4]} 6. e4 {[%clk 0:03:03.2]} 6... g6 {[%clk 0:02:59.6]}
7. h3 {[%clk 0:03:03.5]} 7... Bg7 {[%clk 0:02:59.1]} 8. Nf3 {[%clk 0:03:04.4]}
8... O-O {[%clk 0:02:58.5]} 9. Bd3 {[%clk 0:03:05]} 9... b5 {[%clk 0:02:58.6]}
10. Nxb5 {[%clk 0:02:52.3]} 10... Nxe4 {[%clk 0:02:56.7]} 11. O-O {[%clk
0:02:43.5]} 11... Ba6 {[%clk 0:02:53.9]} 12. Re1 {[%clk 0:02:30.3]} 12... Bxb5
{[%clk 0:02:46.4]} 13. Bxb5 {[%clk 0:02:21.7]} 13... f5 {[%clk 0:02:39.3]} 14.
Bd3 {[%clk 0:02:14.5]} 14... Re8 {[%clk 0:02:07.8]} 15. Bxe4 {[%clk 0:02:13.2]}
15... Rxe4 {[%clk 0:01:57.8]} 16. Ng5 {[%clk 0:02:04.6]} 16... Rxe1+ {[%clk
0:01:43.2]} 17. Qxe1 {[%clk 0:02:05.5]} 17... Qd7 {[%clk 0:01:34.2]} 18. Qe2
{[%clk 0:01:50.6]} 18... Na6 {[%clk 0:01:32.2]} 19. Qxa6 {[%clk 0:01:47.8]}
19... Rb8 {[%clk 0:01:16.8]} 20. Bf4 {[%clk 0:01:37.9]} 20... Rb6 {[%clk
0:01:08.9]} 21. Qe2 {[%clk 0:01:35.4]} 21... Rxb2 {[%clk 0:01:03.7]} 22. Qe6+
{[%clk 0:01:27.5]} 22... Qxe6 {[%clk 0:01:03.2]} 23. Nxe6 {[%clk 0:01:26.4]}
23... Rxf2 {[%clk 0:00:50.4]} 24. Kxf2 {[%clk 0:01:23.8]} 24... Bxa1 {[%clk
0:00:50.2]} 25. Bxd6 {[%clk 0:01:24.2]} 25... c4 {[%clk 0:00:48.4]} 26. Bf4
{[%clk 0:01:13.3]} 26... c3 {[%clk 0:00:42.3]} 27. d6 {[%clk 0:01:12.4]} 1-0

[Event "*** SCC Grand Prix: Titled Tuesday Blitz"]
[Site "Chess.com"]
[Date "2020.07.21"]
[Round "4"]
[White "MusicCityMaster"]
[Black "DaggiGretarsson"]
[Result "0-1"]
[WhiteElo "2446"]
[BlackElo "2619"]
[TimeControl "180+1"]
[EndTime "10:36:52 PDT"]
[Termination "DaggiGretarsson won by resignation"]

1. e4 {[%clk 0:03:00.9]} 1... e5 {[%clk 0:02:59.4]} 2. Nf3 {[%clk 0:03:00.6]}
2... Nc6 {[%clk 0:02:59.2]} 3. Bb5 {[%clk 0:03:00.1]} 3... Nge7 {[%clk
0:02:58.8]} 4. c3 {[%clk 0:02:57.3]} 4... a6 {[%clk 0:02:57.1]} 5. Ba4 {[%clk
0:02:56.3]} 5... g6 {[%clk 0:02:56.7]} 6. O-O {[%clk 0:02:55.7]} 6... Bg7 {[%clk
0:02:56.7]} 7. h3 {[%clk 0:02:55.1]} 7... O-O {[%clk 0:02:55.2]} 8. d4 {[%clk
0:02:52.2]} 8... b5 {[%clk 0:02:49.6]} 9. Bb3 {[%clk 0:02:50.4]} 9... exd4
{[%clk 0:02:42.7]} 10. cxd4 {[%clk 0:02:50.1]} 10... d6 {[%clk 0:02:42.8]} 11.
Nc3 {[%clk 0:02:41.8]} 11... Bb7 {[%clk 0:02:41.2]} 12. Re1 {[%clk 0:02:41.5]}
12... Na5 {[%clk 0:02:35.3]} 13. Bc2 {[%clk 0:02:40.4]} 13... c5 {[%clk
0:02:34.7]} 14. d5 {[%clk 0:02:39.6]} 14... Nc4 {[%clk 0:02:30.6]} 15. Bd3
{[%clk 0:02:20.1]} 15... Nb6 {[%clk 0:02:24.2]} 16. Rb1 {[%clk 0:02:01.2]} 16...
h6 {[%clk 0:02:21.4]} 17. Bf4 {[%clk 0:02:00.1]} 17... Qd7 {[%clk 0:02:16.5]}
18. Qd2 {[%clk 0:01:29.6]} 18... g5 {[%clk 0:02:03.4]} 19. Bg3 {[%clk
0:01:24.9]} 19... f5 {[%clk 0:02:02.9]} 20. exf5 {[%clk 0:01:14.4]} 20... Nxf5
{[%clk 0:01:59.4]} 21. Bh2 {[%clk 0:00:40.5]} 21... Nxd5 {[%clk 0:01:47.2]} 22.
Bc4 {[%clk 0:00:26.7]} 22... bxc4 {[%clk 0:01:42.5]} 23. Nxd5 {[%clk 0:00:26.2]}
23... Rae8 {[%clk 0:01:37.6]} 24. g4 {[%clk 0:00:16.1]} 24... Nd4 {[%clk
0:01:36.8]} 25. Nxd4 {[%clk 0:00:16.3]} 25... cxd4 {[%clk 0:01:27.5]} 26. Nb4
{[%clk 0:00:14.4]} 26... a5 {[%clk 0:01:25.1]} 27. Nc2 {[%clk 0:00:14]} 27...
Qc6 {[%clk 0:01:25]} 28. f3 {[%clk 0:00:10.5]} 28... Qxf3 {[%clk 0:01:24]} 0-1

[Event "*** SCC Grand Prix: Titled Tuesday Blitz"]
[Site "Chess.com"]
[Date "2020.07.21"]
[Round "4"]
[White "Roman_Ovetchkin"]
[Black "sasko1234"]
[Result "1-0"]
[WhiteElo "2606"]
[BlackElo "2385"]
[TimeControl "180+1"]
[EndTime "10:36:54 PDT"]
[Termination "Roman_Ovetchkin won by resignation"]

1. d4 {[%clk 0:03:00.9]} 1... Nf6 {[%clk 0:02:59.3]} 2. c4 {[%clk 0:03:00.3]}
2... d6 {[%clk 0:02:59.4]} 3. Nf3 {[%clk 0:02:58.8]} 3... Bg4 {[%clk 0:02:59]}
4. g3 {[%clk 0:02:50.7]} 4... Nbd7 {[%clk 0:02:57.7]} 5. Bg2 {[%clk 0:02:50.8]}
5... e5 {[%clk 0:02:57.5]} 6. O-O {[%clk 0:02:46.3]} 6... c6 {[%clk 0:02:57.5]}
7. Nc3 {[%clk 0:02:45.2]} 7... Be7 {[%clk 0:02:57]} 8. h3 {[%clk 0:02:42.7]}
8... Bh5 {[%clk 0:02:56.5]} 9. Nh4 {[%clk 0:02:35.6]} 9... O-O {[%clk
0:02:51.3]} 10. Nf5 {[%clk 0:02:31.6]} 10... Bg6 {[%clk 0:02:51.1]} 11. Nxe7+
{[%clk 0:02:30.3]} 11... Qxe7 {[%clk 0:02:51.1]} 12. Be3 {[%clk 0:02:29.5]}
12... Rfe8 {[%clk 0:02:44.8]} 13. d5 {[%clk 0:02:16.9]} 13... c5 {[%clk
0:02:41.4]} 14. a3 {[%clk 0:02:14.6]} 14... Rec8 {[%clk 0:02:30.7]} 15. b3
{[%clk 0:02:09.7]} 15... h6 {[%clk 0:02:28.3]} 16. Qd2 {[%clk 0:02:07]} 16... a6
{[%clk 0:02:06.7]} 17. a4 {[%clk 0:01:55.9]} 17... a5 {[%clk 0:01:48.7]} 18.
Rae1 {[%clk 0:01:43.4]} 18... b6 {[%clk 0:01:48.5]} 19. Qd1 {[%clk 0:01:39.2]}
19... Re8 {[%clk 0:01:45]} 20. Bc1 {[%clk 0:01:33.6]} 20... e4 {[%clk
0:01:28.6]} 21. f4 {[%clk 0:01:28.4]} 21... exf3 {[%clk 0:01:13.7]} 22. exf3
{[%clk 0:01:25.1]} 22... Qd8 {[%clk 0:01:09.4]} 23. Nb5 {[%clk 0:01:08.9]} 23...
Ne5 {[%clk 0:00:46.5]} 24. f4 {[%clk 0:01:03]} 24... Nd3 {[%clk 0:00:46.4]} 25.
Rxe8+ {[%clk 0:01:01.7]} 25... Nxe8 {[%clk 0:00:46]} 26. f5 {[%clk 0:01:01.8]}
1-0

[Event "*** SCC Grand Prix: Titled Tuesday Blitz"]
[Site "Chess.com"]
[Date "2020.07.21"]
[Round "4"]
[White "chessplayer9919"]
[Black "Parkas"]
[Result "1-0"]
[WhiteElo "2624"]
[BlackElo "2344"]
[TimeControl "180+1"]
[EndTime "10:36:59 PDT"]
[Termination "chessplayer9919 won by resignation"]

1. e4 {[%clk 0:03:00.9]} 1... g6 {[%clk 0:02:59.4]} 2. Nc3 {[%clk 0:03:01.8]}
2... Bg7 {[%clk 0:02:59.5]} 3. d4 {[%clk 0:03:00.7]} 3... d6 {[%clk 0:02:59.4]}
4. f4 {[%clk 0:02:57.6]} 4... Nf6 {[%clk 0:02:58.8]} 5. Nf3 {[%clk 0:02:57.5]}
5... O-O {[%clk 0:02:58.9]} 6. Bd3 {[%clk 0:02:51.5]} 6... Nbd7 {[%clk
0:02:58.4]} 7. e5 {[%clk 0:02:42]} 7... Ne8 {[%clk 0:02:56.9]} 8. h4 {[%clk
0:02:39.2]} 8... c5 {[%clk 0:02:47.6]} 9. e6 {[%clk 0:02:34.7]} 9... cxd4 {[%clk
0:01:57.9]} 10. exd7 {[%clk 0:02:23.9]} 10... Bxd7 {[%clk 0:01:57.9]} 11. Ne4
{[%clk 0:02:23.4]} 11... f5 {[%clk 0:01:57.9]} 12. Neg5 {[%clk 0:02:22.2]} 12...
e5 {[%clk 0:01:57.8]} 13. Bc4+ {[%clk 0:02:20.7]} 13... Kh8 {[%clk 0:01:56.3]}
14. h5 {[%clk 0:02:11.9]} 14... d5 {[%clk 0:01:33.7]} 15. Nxe5 {[%clk
0:02:01.4]} 15... Bxe5 {[%clk 0:01:30]} 16. fxe5 {[%clk 0:02:02.3]} 16... dxc4
{[%clk 0:00:56.6]} 17. Qxd4 {[%clk 0:01:44.3]} 17... Bc6 {[%clk 0:00:20.6]} 18.
Qc3 {[%clk 0:01:29.6]} 18... Ng7 {[%clk 0:00:16.7]} 19. hxg6 {[%clk 0:01:27.6]}
19... f4 {[%clk 0:00:10.5]} 20. Rxh7+ {[%clk 0:01:24.3]} 20... Kg8 {[%clk
0:00:10.5]} 21. Rxg7+ {[%clk 0:01:17]} 21... Kxg7 {[%clk 0:00:10.1]} 22. Ne6+
{[%clk 0:01:16.9]} 22... Kxg6 {[%clk 0:00:07.6]} 23. Nxd8 {[%clk 0:01:17.8]}
23... Raxd8 {[%clk 0:00:07.9]} 24. Bd2 {[%clk 0:01:17.3]} 1-0

[Event "*** SCC Grand Prix: Titled Tuesday Blitz"]
[Site "Chess.com"]
[Date "2020.07.21"]
[Round "4"]
[White "alexsergeyev"]
[Black "BilguunSu"]
[Result "0-1"]
[WhiteElo "2358"]
[BlackElo "2599"]
[TimeControl "180+1"]
[EndTime "10:37:02 PDT"]
[Termination "BilguunSu won on time"]

1. d4 {[%clk 0:03:00.9]} 1... d5 {[%clk 0:02:59.8]} 2. Nf3 {[%clk 0:03:00.1]}
2... e6 {[%clk 0:03:00.3]} 3. c4 {[%clk 0:02:59.2]} 3... c6 {[%clk 0:03:01]} 4.
Nc3 {[%clk 0:02:55.9]} 4... dxc4 {[%clk 0:03:00.4]} 5. e3 {[%clk 0:02:55.3]}
5... b5 {[%clk 0:03:01]} 6. a4 {[%clk 0:02:54.9]} 6... Bb4 {[%clk 0:03:01.6]} 7.
Bd2 {[%clk 0:02:54.3]} 7... a5 {[%clk 0:03:00.1]} 8. axb5 {[%clk 0:02:53.2]}
8... Bxc3 {[%clk 0:03:00.6]} 9. Bxc3 {[%clk 0:02:53.3]} 9... cxb5 {[%clk
0:03:01]} 10. b3 {[%clk 0:02:53.5]} 10... Bb7 {[%clk 0:03:00.7]} 11. bxc4 {[%clk
0:02:53.6]} 11... b4 {[%clk 0:03:01.3]} 12. Bb2 {[%clk 0:02:54.1]} 12... Nf6
{[%clk 0:03:01.8]} 13. c5 {[%clk 0:02:53.9]} 13... O-O {[%clk 0:02:55.6]} 14.
Bb5 {[%clk 0:02:52.9]} 14... Qc7 {[%clk 0:02:54]} 15. O-O {[%clk 0:02:50.7]}
15... Ng4 {[%clk 0:02:39.9]} 16. g3 {[%clk 0:02:26.6]} 16... Nc6 {[%clk
0:02:26.1]} 17. Qe2 {[%clk 0:01:56.6]} 17... Ne7 {[%clk 0:02:09.1]} 18. e4
{[%clk 0:01:34.6]} 18... Nf6 {[%clk 0:02:06.7]} 19. e5 {[%clk 0:01:21.5]} 19...
Nfd5 {[%clk 0:02:03.9]} 20. Ng5 {[%clk 0:01:15.4]} 20... Bc6 {[%clk 0:01:52.6]}
21. Ne4 {[%clk 0:01:06.7]} 21... a4 {[%clk 0:01:49.4]} 22. Nd6 {[%clk
0:00:57.5]} 22... a3 {[%clk 0:01:49]} 23. Bc1 {[%clk 0:00:56.4]} 23... Nc3
{[%clk 0:01:48.2]} 24. Qc4 {[%clk 0:00:52.3]} 24... Nxb5 {[%clk 0:01:37.3]} 25.
Nxb5 {[%clk 0:00:50.3]} 25... Bxb5 {[%clk 0:01:31.5]} 26. Qxb5 {[%clk
0:00:49.3]} 26... Rfb8 {[%clk 0:01:32.1]} 27. Qc4 {[%clk 0:00:47]} 27... Qc6
{[%clk 0:01:32.2]} 28. Bg5 {[%clk 0:00:22.8]} 28... Qd5 {[%clk 0:01:31.9]} 0-1

[Event "*** SCC Grand Prix: Titled Tuesday Blitz"]
[Site "Chess.com"]
[Date "2020.07.21"]
[Round "4"]
[White "Klaus1995"]
[Black "cukin84"]
[Result "0-1"]
[WhiteElo "1897"]
[BlackElo "2169"]
[TimeControl "180+1"]
[EndTime "10:37:08 PDT"]
[Termination "cukin84 won by checkmate"]

1. e4 {[%clk 0:03:00.9]} 1... c6 {[%clk 0:02:59.3]} 2. d4 {[%clk 0:03:00.2]}
2... d5 {[%clk 0:02:59.4]} 3. Nc3 {[%clk 0:03:00.8]} 3... a6 {[%clk 0:02:59]} 4.
Bd3 {[%clk 0:03:00.2]} 4... dxe4 {[%clk 0:02:58.2]} 5. Bxe4 {[%clk 0:02:57.4]}
5... Nf6 {[%clk 0:02:57.2]} 6. Bf3 {[%clk 0:02:55.4]} 6... Bf5 {[%clk
0:02:56.6]} 7. Nge2 {[%clk 0:02:54.7]} 7... e6 {[%clk 0:02:56.9]} 8. Bf4 {[%clk
0:02:54.5]} 8... Be7 {[%clk 0:02:55.5]} 9. Qd2 {[%clk 0:02:54.2]} 9... Nd5
{[%clk 0:02:53.2]} 10. Nxd5 {[%clk 0:02:53.9]} 10... cxd5 {[%clk 0:02:53.2]} 11.
g4 {[%clk 0:02:49.4]} 11... Bg6 {[%clk 0:02:52.7]} 12. h4 {[%clk 0:02:48.9]}
12... h5 {[%clk 0:02:51.6]} 13. g5 {[%clk 0:02:45.9]} 13... Nc6 {[%clk
0:02:50.8]} 14. Ng3 {[%clk 0:02:45.5]} 14... Rc8 {[%clk 0:02:43.6]} 15. c3
{[%clk 0:02:44.4]} 15... Na5 {[%clk 0:02:42.4]} 16. Qe2 {[%clk 0:02:41.5]} 16...
b5 {[%clk 0:02:35.7]} 17. Bxh5 {[%clk 0:02:37.4]} 17... Bxh5 {[%clk 0:02:29.9]}
18. Nxh5 {[%clk 0:02:36]} 18... Kf8 {[%clk 0:02:30.2]} 19. Be5 {[%clk
0:02:32.5]} 19... Rg8 {[%clk 0:02:22.4]} 20. Nf4 {[%clk 0:02:15.5]} 20... Nc4
{[%clk 0:02:20.7]} 21. Qf3 {[%clk 0:01:38.5]} 21... Ke8 {[%clk 0:02:16.3]} 22.
g6 {[%clk 0:01:18.9]} 22... Nxe5 {[%clk 0:01:53.3]} 23. dxe5 {[%clk 0:01:17.2]}
23... Rf8 {[%clk 0:01:49]} 24. Qh5 {[%clk 0:01:13.2]} 24... Qb6 {[%clk
0:01:43.8]} 25. gxf7+ {[%clk 0:00:55]} 25... Kd7 {[%clk 0:01:43.3]} 26. Rg1
{[%clk 0:00:52.5]} 26... Rc4 {[%clk 0:01:41.9]} 27. Ng6 {[%clk 0:00:50.5]} 27...
Rxf7 {[%clk 0:01:38.3]} 28. Nxe7 {[%clk 0:00:50.1]} 28... Rxe7 {[%clk 0:01:38]}
29. O-O-O {[%clk 0:00:50.6]} 29... b4 {[%clk 0:01:34.8]} 30. Rg6 {[%clk
0:00:31.8]} 30... bxc3 {[%clk 0:01:33.7]} 31. Rxd5+ {[%clk 0:00:31.5]} 31... Kc7
{[%clk 0:01:27.7]} 32. b3 {[%clk 0:00:26.3]} 32... Qxf2 {[%clk 0:01:24.3]} 33.
Rd1 {[%clk 0:00:12]} 33... Qb2# {[%clk 0:01:23.1]} 0-1

[Event "*** SCC Grand Prix: Titled Tuesday Blitz"]
[Site "Chess.com"]
[Date "2020.07.21"]
[Round "4"]
[White "EvgenyT"]
[Black "SamuelGhimpu2003"]
[Result "1-0"]
[WhiteElo "2911"]
[BlackElo "2558"]
[TimeControl "180+1"]
[EndTime "10:37:09 PDT"]
[Termination "EvgenyT won on time"]

1. c4 {[%clk 0:03:00.9]} 1... e6 {[%clk 0:02:56.4]} 2. Nc3 {[%clk 0:02:58.6]}
2... Nf6 {[%clk 0:02:55.5]} 3. d4 {[%clk 0:02:54.5]} 3... Bb4 {[%clk 0:02:54.6]}
4. e3 {[%clk 0:02:54.7]} 4... O-O {[%clk 0:02:53.5]} 5. Bd3 {[%clk 0:02:53.8]}
5... c5 {[%clk 0:02:46.2]} 6. Nf3 {[%clk 0:02:52.9]} 6... d6 {[%clk 0:02:42]} 7.
O-O {[%clk 0:02:48.1]} 7... Bxc3 {[%clk 0:02:41.9]} 8. bxc3 {[%clk 0:02:48]}
8... Nc6 {[%clk 0:02:41.8]} 9. e4 {[%clk 0:02:41.6]} 9... e5 {[%clk 0:02:41.3]}
10. d5 {[%clk 0:02:41.6]} 10... Ne7 {[%clk 0:02:41.4]} 11. Nh4 {[%clk
0:02:28.9]} 11... h6 {[%clk 0:02:41.6]} 12. Qf3 {[%clk 0:02:25.2]} 12... Nh7
{[%clk 0:01:41.4]} 13. Qg3 {[%clk 0:02:11.3]} 13... g5 {[%clk 0:00:02.7]} 14. f4
{[%clk 0:01:48.2]} 14... f6 {[%clk 0:00:03]} 15. f5 {[%clk 0:01:25.4]} 15... Kg7
{[%clk 0:00:01.7]} 16. Nf3 {[%clk 0:01:25]} 16... Kh8 {[%clk 0:00:01.6]} 17. h4
{[%clk 0:01:23.4]} 17... Rg8 {[%clk 0:00:02.1]} 18. hxg5 {[%clk 0:01:22.3]}
18... hxg5 {[%clk 0:00:02.4]} 19. Kf2 {[%clk 0:01:20.1]} 19... Kg7 {[%clk
0:00:02.8]} 20. Rh1 {[%clk 0:01:19.5]} 20... Rh8 {[%clk 0:00:03.2]} 21. Qh2
{[%clk 0:01:12.6]} 21... Ng8 {[%clk 0:00:03.3]} 22. Qh5 {[%clk 0:01:04.9]} 1-0